[Event "FIDE World Cadets GU10 2022"]
[Site "Batumi"]
[Date "2022.09.16"]
[Round "1"]
[White "Kharitonova, Viktoriia"]
[Black "Meshkova, Aleksandra"]
[Result "0-1"]
[ECO "C48"]
[WhiteElo "1403"]
[BlackElo "1116"]
[Annotator "NA COMBH"]
[PlyCount "105"]
[EventDate "2022.09.16"]
[EventType "swiss"]
[EventCountry "GEO"]
[SourceTitle "playchess.com"]
[Source "ChessBase"]
[SourceQuality "1"]
[TimeControl "5400+30"]

1. e4 {[%emt 0:01:00]} e5 {[%emt 0:01:00]} 2. Nf3 {[%emt 0:00:30]} Nf6 {[%emt 0:00:30]} 3. Nc3 {[%emt 0:00:30]} Nc6 {[%emt 0:00:30]} 4. Bb5 {[%emt 0:00:00]} Bd6 {[%emt 0:00:00]} 5. d3 {[%emt 0:00:00]} O-O {[%emt 0:04:00]} 6. Ba4 {[%emt 0:00:30]} h6 {[%emt 0:00:30]} 7. g4 {[%emt 0:00:30]} Nh7 {[%emt 0:00:30]} 8. h4 {[%emt 0:00:30]} a6 {[%emt 0:00:30]} 9. g5 {[%emt 0:00:30]} h5 {[%emt 0:00:30]} 10. Bb3 {[%emt 0:29:30]} g6 {[%emt 0:23:30]} 11. a3 {[%emt 0:11:30]} Bc5 {[%emt 0:02:30]} 12. Nd5 {[%emt 0:01:30]} d6 {[%emt 0:02:30]} 13. Be3 {[%emt 0:12:30]} Ba7 {[%emt 0:04:30]} 14. Qd2 {[%emt 0:07:30]} a5 {[%emt 0:05:30]} 15. c3 {[%emt 0:07:30]} Kh8 {[%emt 0:02:30]} 16. d4 {[%emt 0:03:30]} b5 {[%emt 0:06:30]} 17. Rd1 {[%emt 0:03:09]} Bg4 {[%emt 0:00:30]} 18. Nh2 {[%emt 0:07:48]} Bxd1 {[%emt 0:01:30]} 19. Kxd1 {[%emt 0:00:44]} Ne7 {[%emt 0:05:30]} 20. f4 {[%emt 0:04:34]} exf4 {[%emt 0:03:30]} 21. Bxf4 {[%emt 0:00:14]} Nxd5 {[%emt 0:00:30]} 22. Bxd5 {[%emt 0:00:11]} Rb8 {[%emt 0:00:30]} 23. Nf3 {[%emt 0:04:08]} Qd7 {[%emt 0:01:30]} 24. Rf1 {[%emt 0:02:02]} c6 {[%emt 0:01:30]} 25. Ba2 {[%emt 0:00:39]} Rb7 {[%emt 0:01:30]} 26. d5 {[%emt 0:00:43]} c5 {[%emt 0:03:30]} 27. e5 {[%emt 0:00:40]} Bb8 {[%emt 0:03:30]} 28. Re1 {[%emt 0:01:33]} Qg4 {[%emt 0:01:30]} 29. Qe3 {[%emt 0:00:06]} Re8 {[%emt 0:01:30]} 30. e6 {[%emt 0:00:44]} Nf8 {[%emt 0:01:30]} 31. Kc2 {[%emt 0:00:26]} Rbe7 {[%emt 0:01:30]} 32. Nh2 {[%emt 0:00:44]} Qf5+ {[%emt 0:01:30]} 33. Kc1 {[%emt 0:00:31]} fxe6 {[%emt 0:00:00]} 34. c4 {[%emt 0:00:28]} exd5 {[%emt 0:00:00]} 35. Qc3+ {[%emt 0:00:46]} d4 {[%emt 0:00:30]} 36. Rxe7 {[%emt 0:00:30]} dxc3 {[%emt 0:00:30]} 37. Rxe8 {[%emt 0:00:00]} Qxf4+ {[%emt 0:00:30]} 38. Kb1 {[%emt 0:00:00]} cxb2 {[%emt 0:01:30]} 39. Kxb2 {[%emt 0:00:00]} Qxh2+ {[%emt 0:00:30]} 40. Kb1 {[%emt 0:00:55]} Qg1+ {[%emt 0:00:00]} 41. Kb2 {[%emt 0:00:30]} Qf2+ {[%emt 0:00:00]} 42. Kb1 {[%emt 0:00:00]} Bc7 {[%emt 0:01:30]} 43. cxb5 {[%emt 0:00:09]} Qf1+ {[%emt 0:00:30]} 44. Kb2 {[%emt 0:00:30]} Qxb5+ {[%emt 0:00:30]} 45. Ka1 {[%emt 0:00:30]} Qxe8 {[%emt 0:00:30]} 46. Kb2 {[%emt 0:00:00]} Ne6 {[%emt 0:00:30]} 47. Bxe6 {[%emt 0:00:25]} Qxe6 {[%emt 0:00:30]} 48. a4 {[%emt 0:00:00]} d5 {[%emt 0:00:00]} 49. Kc1 {[%emt 0:00:00]} c4 {[%emt 0:00:00]} 50. Kd2 {[%emt 0:00:00]} Bf4+ {[%emt 0:01:30]} 51. Kc2 {[%emt 0:00:00]} d4 {[%emt 0:00:30]} 52. Kd1 {[%emt 0:00:20]} Qe3 {[%emt 0:00:30]} 53. Kc2 {[%emt 0:00:00]} 0-1

[Event "FIDE World Cadets GU10 2022"]
[Site "Batumi"]
[Date "2022.09.16"]
[Round "1"]
[White "Sabyrbekova, Aizhan"]
[Black "Bassari, Senem Gul"]
[Result "0-1"]
[ECO "B99"]
[WhiteElo "1164"]
[BlackElo "1536"]
[Annotator "NA COMBH"]
[PlyCount "74"]
[EventDate "2022.09.16"]
[EventType "swiss"]
[EventCountry "GEO"]
[SourceTitle "playchess.com"]
[Source "ChessBase"]
[SourceQuality "1"]
[TimeControl "5400+30"]

1. e4 {[%emt 0:01:00]} c5 {[%emt 0:01:00]} 2. Nf3 {[%emt 0:00:30]} d6 {[%emt 0:00:30]} 3. d4 {[%emt 0:00:00]} cxd4 {[%emt 0:00:00]} 4. Nxd4 {[%emt 0:00:00]} Nf6 {[%emt 0:00:00]} 5. Nc3 {[%emt 0:00:30]} a6 {[%emt 0:00:30]} 6. Bg5 {[%emt 0:00:30]} e6 {[%emt 0:00:30]} 7. f4 {[%emt 0:00:00]} h6 {[%emt 0:00:00]} 8. Bh4 {[%emt 0:00:00]} Be7 {[%emt 0:04:00]} 9. Qf3 {[%emt 0:00:30]} Qc7 {[%emt 0:00:30]} 10. Be2 {[%emt 0:00:30]} Nbd7 {[%emt 0:01:30]} 11. O-O-O {[%emt 0:01:30]} b5 {[%emt 0:05:30]} 12. e5 {[%emt 0:01:30]} Bb7 {[%emt 0:01:30]} 13. exf6 {[%emt 0:00:30]} Bxf3 {[%emt 0:00:30]} 14. Bxf3 {[%emt 0:00:00]} Rc8 {[%emt 0:21:30]} 15. fxe7 {[%emt 0:00:00]} Nf6 {[%emt 0:16:30]} 16. Rhe1 {[%emt 0:04:30]} d5 {[%emt 0:12:30]} 17. g3 {[%emt 0:01:30]} b4 {[%emt 0:03:30]} 18. Nb1 {[%emt 0:14:30]} a5 {[%emt 0:06:30]} 19. Rd2 {[%emt 0:00:30]} Qd6 {[%emt 0:17:59]} 20. Bxf6 {[%emt 0:03:30]} gxf6 {[%emt 0:00:44]} 21. f5 {[%emt 0:01:30]} e5 {[%emt 0:02:30]} 22. Nb3 {[%emt 0:23:30]} d4 {[%emt 0:00:35]} 23. Nxa5 {[%emt 0:02:30]} Qb6 {[%emt 0:01:25]} 24. Nb3 {[%emt 0:01:30]} Qa6 {[%emt 0:00:36]} 25. Be2 {[%emt 0:02:30]} Qa4 {[%emt 0:01:22]} 26. Bd3 {[%emt 0:02:30]} Rc7 {[%emt 0:00:48]} 27. Red1 {[%emt 0:02:30]} Kd7 {[%emt 0:00:52]} 28. Be4 {[%emt 0:00:30]} Kxe7 {[%emt 0:00:24]} 29. Bd5 {[%emt 0:02:30]} Rhc8 {[%emt 0:00:27]} 30. Be4 {[%emt 0:00:30]} Qxa2 {[%emt 0:00:37]} 31. Re1 {[%emt 0:01:30]} Qxb3 {[%emt 0:00:24]} 32. Ree2 {[%emt 0:02:30]} Kf8 {[%emt 0:00:36]} 33. Bd3 {[%emt 0:01:30]} Qa4 {[%emt 0:00:35]} 34. Be4 {[%emt 0:00:30]} b3 {[%emt 0:00:16]} 35. c3 {[%emt 0:01:30]} dxc3 {[%emt 0:00:30]} 36. Nxc3 {[%emt 0:00:30]} Qa1+ {[%emt 0:00:30]} 37. Bb1 {[%emt 0:00:30]} Rxc3+ {[%emt 0:00:30]} 0-1

[Event "FIDE World Cadets GU10 2022"]
[Site "Batumi"]
[Date "2022.09.16"]
[Round "1"]
[White "Xikmatkhonova, Mokhinur"]
[Black "Venskaya, Nika"]
[Result "0-1"]
[ECO "B08"]
[WhiteElo "1158"]
[BlackElo "1470"]
[Annotator "NA COMBH"]
[PlyCount "60"]
[EventDate "2022.09.16"]
[EventType "swiss"]
[EventCountry "GEO"]
[SourceTitle "playchess.com"]
[Source "ChessBase"]
[SourceQuality "1"]
[TimeControl "5400+30"]

1. d4 {[%emt 0:01:00]} Nf6 {[%emt 0:01:00]} 2. Nc3 {[%emt 0:00:00]} g6 {[%emt 0:00:30]} 3. Nf3 {[%emt 0:00:00]} Bg7 {[%emt 0:00:30]} 4. e4 {[%emt 0:00:30]} d6 {[%emt 0:00:00]} 5. Be3 {[%emt 0:01:30]} c6 {[%emt 0:01:00]} 6. Bd3 {[%emt 0:00:30]} Ng4 {[%emt 0:00:30]} 7. O-O {[%emt 0:04:30]} O-O {[%emt 0:01:30]} 8. h3 {[%emt 0:00:30]} Nxe3 {[%emt 0:00:30]} 9. fxe3 {[%emt 0:00:30]} e5 {[%emt 0:01:30]} 10. dxe5 {[%emt 0:00:00]} dxe5 {[%emt 0:00:00]} 11. Bc4 {[%emt 0:01:00]} Qb6 {[%emt 0:02:00]} 12. Qc1 {[%emt 0:04:30]} Qc5 {[%emt 0:02:30]} 13. Bb3 {[%emt 0:00:30]} Bh6 {[%emt 0:00:30]} 14. Nd1 {[%emt 0:01:30]} Nd7 {[%emt 0:03:30]} 15. Re1 {[%emt 0:05:30]} b5 {[%emt 0:01:30]} 16. Nf2 {[%emt 0:00:30]} Qe7 {[%emt 0:02:30]} 17. Qd2 {[%emt 0:04:30]} Nf6 {[%emt 0:28:30]} 18. Rad1 {[%emt 0:01:30]} Qc5 {[%emt 0:07:30]} 19. Re2 {[%emt 0:06:30]} a5 {[%emt 0:06:30]} 20. a3 {[%emt 0:02:30]} Nh5 {[%emt 0:04:30]} 21. Ng4 {[%emt 0:28:30]} Bxg4 {[%emt 0:01:30]} 22. hxg4 {[%emt 0:01:30]} Ng3 {[%emt 0:00:00]} 23. Ree1 {[%emt 0:00:30]} Nxe4 {[%emt 0:01:00]} 24. Qd3 {[%emt 0:00:30]} Ng5 {[%emt 0:00:30]} 25. Nd2 {[%emt 0:09:30]} Qe7 {[%emt 0:05:30]} 26. Rf1 {[%emt 0:05:30]} Bg7 {[%emt 0:05:30]} 27. Ne4 {[%emt 0:00:49]} Rad8 {[%emt 0:01:30]} 28. Nd6 {[%emt 0:02:06]} e4 {[%emt 0:02:33]} 29. Qd2 {[%emt 0:09:01]} Be5 {[%emt 0:01:08]} 30. Bxf7+ {[%emt 0:02:16]} Nxf7 {[%emt 0:00:41]} 0-1

[Event "FIDE World Cadets GU10 2022"]
[Site "Batumi"]
[Date "2022.09.16"]
[Round "1"]
[White "Torun, Selin"]
[Black "Artamonova, Ulyana"]
[Result "1/2-1/2"]
[ECO "A12"]
[WhiteElo "1156"]
[BlackElo "1449"]
[Annotator "NA COMBH"]
[PlyCount "78"]
[EventDate "2022.09.16"]
[EventType "swiss"]
[EventCountry "GEO"]
[SourceTitle "playchess.com"]
[Source "ChessBase"]
[SourceQuality "1"]
[TimeControl "5400+30"]

1. c4 {[%emt 0:01:00]} c6 {[%emt 0:01:00]} 2. Nf3 {[%emt 0:00:30]} d5 {[%emt 0:00:30]} 3. b3 {[%emt 0:01:30]} Nf6 {[%emt 0:03:30]} 4. Bb2 {[%emt 0:01:30]} g6 {[%emt 0:00:30]} 5. d3 {[%emt 0:06:30]} Bg7 {[%emt 0:00:30]} 6. Nbd2 {[%emt 0:02:30]} O-O {[%emt 0:04:30]} 7. g3 {[%emt 0:02:30]} Qb6 {[%emt 0:07:30]} 8. Rb1 {[%emt 0:06:30]} Ng4 {[%emt 0:04:30]} 9. e3 {[%emt 0:02:30]} Bxb2 {[%emt 0:02:30]} 10. Rxb2 {[%emt 0:02:30]} Nf6 {[%emt 0:01:30]} 11. h3 {[%emt 0:02:30]} Qb4 {[%emt 0:01:30]} 12. Bg2 {[%emt 0:04:30]} dxc4 {[%emt 0:01:30]} 13. dxc4 {[%emt 0:03:30]} Bf5 {[%emt 0:04:30]} 14. O-O {[%emt 0:03:30]} Na6 {[%emt 0:11:30]} 15. Qe2 {[%emt 0:06:30]} Nc5 {[%emt 0:01:30]} 16. Ne1 {[%emt 0:03:30]} Rfd8 {[%emt 0:06:30]} 17. e4 {[%emt 0:02:30]} Be6 {[%emt 0:06:30]} 18. f4 {[%emt 0:02:30]} Qc3 {[%emt 0:10:30]} 19. Nb1 {[%emt 0:09:30]} Qd4+ {[%emt 0:01:30]} 20. Kh2 {[%emt 0:03:30]} Ncxe4 {[%emt 0:02:30]} 21. Nf3 {[%emt 0:02:30]} Qd3 {[%emt 0:06:30]} 22. Qe1 {[%emt 0:02:30]} Qd7 {[%emt 0:05:19]} 23. Re2 {[%emt 0:02:30]} Nd6 {[%emt 0:01:30]} 24. Ng5 {[%emt 0:01:30]} Nf5 {[%emt 0:03:46]} 25. Nxe6 {[%emt 0:00:30]} fxe6 {[%emt 0:00:43]} 26. Rxe6 {[%emt 0:00:30]} Kf7 {[%emt 0:00:25]} 27. Re2 {[%emt 0:01:30]} Qc7 {[%emt 0:01:06]} 28. Nd2 {[%emt 0:01:30]} Nd4 {[%emt 0:01:17]} 29. Ref2 {[%emt 0:01:30]} Kg7 {[%emt 0:01:47]} 30. Nf3 {[%emt 0:01:30]} Nxf3+ {[%emt 0:00:25]} 31. Rxf3 {[%emt 0:00:30]} Qd6 {[%emt 0:00:48]} 32. Qe5 {[%emt 0:01:31]} Rf8 {[%emt 0:01:22]} 33. Qxd6 {[%emt 0:01:02]} exd6 {[%emt 0:00:34]} 34. Rd3 {[%emt 0:01:20]} Rad8 {[%emt 0:00:30]} 35. Rfd1 {[%emt 0:00:30]} Ne8 {[%emt 0:00:30]} 36. Re1 {[%emt 0:00:30]} Rf7 {[%emt 0:00:25]} 37. b4 {[%emt 0:01:05]} Nc7 {[%emt 0:01:48]} 38. Red1 {[%emt 0:00:24]} Rfd7 {[%emt 0:01:20]} 39. a4 {[%emt 0:01:15]} a6 {[%emt 0:00:24]} 1/2-1/2

[Event "FIDE World Cadets GU10 2022"]
[Site "Batumi"]
[Date "2022.09.16"]
[Round "1"]
[White "Berikkyzy, Aiaru"]
[Black "Siskou, Evangelia"]
[Result "0-1"]
[ECO "C54"]
[WhiteElo "1152"]
[BlackElo "1421"]
[Annotator "NA COMBH"]
[PlyCount "120"]
[EventDate "2022.09.16"]
[EventType "swiss"]
[EventCountry "GEO"]
[SourceTitle "playchess.com"]
[Source "ChessBase"]
[SourceQuality "1"]
[TimeControl "5400+30"]

1. e4 {[%emt 0:01:00]} e5 {[%emt 0:01:00]} 2. Nf3 {[%emt 0:00:30]} Nc6 {[%emt 0:00:30]} 3. Bc4 {[%emt 0:01:30]} Bc5 {[%emt 0:00:30]} 4. c3 {[%emt 0:00:30]} Nf6 {[%emt 0:01:30]} 5. d4 {[%emt 0:00:30]} exd4 {[%emt 0:00:00]} 6. e5 {[%emt 0:01:30]} d5 {[%emt 0:00:00]} 7. Bb5 {[%emt 0:00:30]} Ne4 {[%emt 0:00:30]} 8. cxd4 {[%emt 0:00:30]} Bb6 {[%emt 0:00:30]} 9. O-O {[%emt 0:08:30]} O-O {[%emt 0:01:30]} 10. Nc3 {[%emt 0:05:30]} a6 {[%emt 0:14:30]} 11. Bxc6 {[%emt 0:00:30]} bxc6 {[%emt 0:03:30]} 12. Re1 {[%emt 0:02:30]} Bf5 {[%emt 0:05:30]} 13. Bf4 {[%emt 0:05:30]} c5 {[%emt 0:08:30]} 14. Rc1 {[%emt 0:16:30]} cxd4 {[%emt 0:02:30]} 15. Nxd4 {[%emt 0:00:30]} Nxc3 {[%emt 0:01:30]} 16. bxc3 {[%emt 0:04:30]} Be6 {[%emt 0:03:30]} 17. Re3 {[%emt 0:08:30]} c5 {[%emt 0:05:30]} 18. Nxe6 {[%emt 0:01:30]} fxe6 {[%emt 0:00:00]} 19. Qg4 {[%emt 0:00:30]} Qe7 {[%emt 0:02:00]} 20. Bg5 {[%emt 0:01:30]} Qf7 {[%emt 0:01:30]} 21. Rf3 {[%emt 0:01:30]} Qg6 {[%emt 0:00:30]} 22. Rg3 {[%emt 0:02:30]} Qf5 {[%emt 0:09:30]} 23. Qxf5 {[%emt 0:02:30]} Rxf5 {[%emt 0:00:00]} 24. Bf6 {[%emt 0:02:30]} g6 {[%emt 0:07:00]} 25. Rb1 {[%emt 0:00:30]} Bc7 {[%emt 0:04:30]} 26. Re3 {[%emt 0:05:30]} Rf4 {[%emt 0:03:30]} 27. Rb7 {[%emt 0:02:30]} Rb8 {[%emt 0:00:00]} 28. Rxb8+ {[%emt 0:00:30]} Bxb8 {[%emt 0:00:00]} 29. f3 {[%emt 0:03:30]} Kf7 {[%emt 0:03:30]} 30. Kf2 {[%emt 0:01:30]} Ra4 {[%emt 0:00:00]} 31. Re2 {[%emt 0:00:30]} Bc7 {[%emt 0:02:00]} 32. Rb2 {[%emt 0:01:43]} Ke8 {[%emt 0:00:30]} 33. g3 {[%emt 0:01:21]} c4 {[%emt 0:02:00]} 34. Ke3 {[%emt 0:01:31]} Ra3 {[%emt 0:00:06]} 35. Kd4 {[%emt 0:01:47]} Rxa2 {[%emt 0:00:52]} 36. Rb1 {[%emt 0:03:26]} Kd7 {[%emt 0:05:49]} 37. h4 {[%emt 0:02:26]} Kc6 {[%emt 0:00:11]} 38. Bg5 {[%emt 0:02:26]} Bb6+ {[%emt 0:00:13]} 39. Rxb6+ {[%emt 0:00:05]} Kxb6 {[%emt 0:00:30]} 40. Bd8+ {[%emt 0:00:30]} Kb5 {[%emt 0:00:00]} 41. Bg5 {[%emt 0:01:21]} a5 {[%emt 0:00:03]} 42. g4 {[%emt 0:00:07]} a4 {[%emt 0:01:10]} 43. Bc1 {[%emt 0:00:25]} a3 {[%emt 0:00:23]} 44. f4 {[%emt 0:00:16]} Rd2+ {[%emt 0:00:01]} 45. Ke3 {[%emt 0:02:13]} a2 {[%emt 0:00:12]} 46. Kxd2 {[%emt 0:01:17]} a1=Q {[%emt 0:00:08]} 47. f5 {[%emt 0:00:38]} Qa2+ {[%emt 0:00:30]} 48. Ke3 {[%emt 0:00:00]} gxf5 {[%emt 0:00:31]} 49. gxf5 {[%emt 0:00:18]} exf5 {[%emt 0:00:05]} 50. e6 {[%emt 0:00:13]} Qc2 {[%emt 0:00:13]} 51. e7 {[%emt 0:00:35]} Qxc1+ {[%emt 0:00:46]} 52. Ke2 {[%emt 0:00:30]} Qc2+ {[%emt 0:00:00]} 53. Kf1 {[%emt 0:00:28]} Qe4 {[%emt 0:00:08]} 54. h5 {[%emt 0:00:30]} Qxe7 {[%emt 0:00:30]} 55. h6 {[%emt 0:00:30]} f4 {[%emt 0:00:30]} 56. Kf2 {[%emt 0:00:00]} Qe3+ {[%emt 0:00:00]} 57. Kf1 {[%emt 0:00:00]} Qd2 {[%emt 0:00:00]} 58. Kg1 {[%emt 0:00:00]} Qe2 {[%emt 0:00:27]} 59. Kh1 {[%emt 0:00:00]} f3 {[%emt 0:00:00]} 60. Kg1 {[%emt 0:00:00]} Qg2# {[%emt 0:00:00]} 0-1

[Event "FIDE World Cadets GU10 2022"]
[Site "Batumi"]
[Date "2022.09.16"]
[Round "1"]
[White "Ramakrishnan, Veda"]
[Black "Chovanec, Alice"]
[Result "0-1"]
[ECO "B42"]
[WhiteElo "1140"]
[BlackElo "1414"]
[Annotator "NA COMBH"]
[PlyCount "84"]
[EventDate "2022.09.16"]
[EventType "swiss"]
[EventCountry "GEO"]
[SourceTitle "playchess.com"]
[Source "ChessBase"]
[SourceQuality "1"]
[TimeControl "5400+30"]

1. e4 {[%emt 0:01:00]} c5 {[%emt 0:01:00]} 2. Nf3 {[%emt 0:00:30]} e6 {[%emt 0:00:30]} 3. d4 {[%emt 0:00:30]} cxd4 {[%emt 0:00:30]} 4. Nxd4 {[%emt 0:00:00]} a6 {[%emt 0:00:00]} 5. Bd3 {[%emt 0:01:00]} Qc7 {[%emt 0:00:00]} 6. O-O {[%emt 0:00:30]} Nf6 {[%emt 0:00:00]} 7. Bg5 {[%emt 0:01:30]} Nc6 {[%emt 0:01:00]} 8. c3 {[%emt 0:02:30]} Bc5 {[%emt 0:04:30]} 9. Nxc6 {[%emt 0:01:30]} dxc6 {[%emt 0:00:30]} 10. Nd2 {[%emt 0:01:30]} Bd7 {[%emt 0:00:30]} 11. Nb3 {[%emt 0:00:30]} Ba7 {[%emt 0:01:30]} 12. Qf3 {[%emt 0:01:30]} O-O-O {[%emt 0:09:30]} 13. Bxf6 {[%emt 0:00:30]} gxf6 {[%emt 0:00:30]} 14. Qxf6 {[%emt 0:00:30]} c5 {[%emt 0:04:30]} 15. Be2 {[%emt 0:01:30]} Bc6 {[%emt 0:02:30]} 16. f3 {[%emt 0:02:30]} c4+ {[%emt 0:02:30]} 17. Kh1 {[%emt 0:07:30]} cxb3 {[%emt 0:00:30]} 18. axb3 {[%emt 0:00:30]} Bb8 {[%emt 0:02:30]} 19. g3 {[%emt 0:02:30]} h5 {[%emt 0:01:30]} 20. Qh4 {[%emt 0:01:30]} Rdg8 {[%emt 0:07:30]} 21. Rg1 {[%emt 0:03:30]} Ba7 {[%emt 0:02:30]} 22. Rg2 {[%emt 0:01:30]} Be3 {[%emt 0:03:30]} 23. Bc4 {[%emt 0:05:30]} Bg5 {[%emt 0:02:30]} 24. Qh3 {[%emt 0:02:30]} Bd7 {[%emt 0:01:30]} 25. Rgg1 {[%emt 0:00:30]} e5 {[%emt 0:05:30]} 26. Qf1 {[%emt 0:01:30]} Be3 {[%emt 0:01:30]} 27. Rg2 {[%emt 0:01:30]} Bh3 {[%emt 0:00:30]} 28. Qe2 {[%emt 0:03:30]} Bxg2+ {[%emt 0:00:30]} 29. Kxg2 {[%emt 0:00:30]} Bb6 {[%emt 0:00:30]} 30. Rd1 {[%emt 0:03:30]} Rd8 {[%emt 0:00:30]} 31. Bd5 {[%emt 0:00:30]} f6 {[%emt 0:02:30]} 32. c4 {[%emt 0:06:30]} Qc5 {[%emt 0:01:30]} 33. Qd2 {[%emt 0:02:30]} Qe3 {[%emt 0:01:30]} 34. Qc2 {[%emt 0:02:30]} h4 {[%emt 0:01:30]} 35. Be6+ {[%emt 0:02:30]} Kb8 {[%emt 0:00:30]} 36. Rxd8+ {[%emt 0:00:00]} Rxd8 {[%emt 0:00:30]} 37. Bd5 {[%emt 0:01:00]} Qg1+ {[%emt 0:00:30]} 38. Kh3 {[%emt 0:00:30]} hxg3 {[%emt 0:00:30]} 39. hxg3 {[%emt 0:00:30]} Bf2 {[%emt 0:00:30]} 40. Kg4 {[%emt 0:00:30]} Qxg3+ {[%emt 0:00:30]} 41. Kf5 {[%emt 0:00:00]} Rd6 {[%emt 0:00:30]} 42. Qc3 {[%emt 0:01:00]} Qg5# {[%emt 0:00:30]} 0-1

[Event "FIDE World Cadets GU10 2022"]
[Site "Batumi"]
[Date "2022.09.16"]
[Round "1"]
[White "Advika, Vinai"]
[Black "Wadhwa, Ananya"]
[Result "1-0"]
[ECO "B74"]
[WhiteElo "1133"]
[BlackElo "1411"]
[Annotator "NA COMBH"]
[PlyCount "123"]
[EventDate "2022.09.16"]
[EventType "swiss"]
[EventCountry "GEO"]
[SourceTitle "playchess.com"]
[Source "ChessBase"]
[SourceQuality "1"]
[TimeControl "5400+30"]

1. e4 {[%emt 0:01:00]} c5 {[%emt 0:01:00]} 2. Nf3 {[%emt 0:00:30]} d6 {[%emt 0:00:30]} 3. d4 {[%emt 0:00:30]} cxd4 {[%emt 0:00:30]} 4. Nxd4 {[%emt 0:00:30]} Nf6 {[%emt 0:00:30]} 5. Nc3 {[%emt 0:00:00]} g6 {[%emt 0:00:00]} 6. Be3 {[%emt 0:00:00]} Bg7 {[%emt 0:00:00]} 7. Be2 {[%emt 0:00:00]} O-O {[%emt 0:00:00]} 8. O-O {[%emt 0:00:00]} Nc6 {[%emt 0:00:00]} 9. Nb3 {[%emt 0:00:00]} a6 {[%emt 0:00:30]} 10. f4 {[%emt 0:00:00]} b5 {[%emt 0:00:30]} 11. a3 {[%emt 0:00:00]} Bb7 {[%emt 0:02:30]} 12. Bf3 {[%emt 0:00:00]} Rc8 {[%emt 0:00:30]} 13. g4 {[%emt 0:01:30]} b4 {[%emt 0:06:30]} 14. axb4 {[%emt 0:01:30]} Nxb4 {[%emt 0:00:30]} 15. Qd2 {[%emt 0:00:30]} d5 {[%emt 0:09:30]} 16. e5 {[%emt 0:02:30]} Nd7 {[%emt 0:05:30]} 17. Ra4 {[%emt 0:02:30]} Nc6 {[%emt 0:06:30]} 18. Bxd5 {[%emt 0:01:30]} Nb6 {[%emt 0:07:30]} 19. Bxb6 {[%emt 0:02:30]} Qxb6+ {[%emt 0:00:00]} 20. Qf2 {[%emt 0:00:30]} Qc7 {[%emt 0:04:00]} 21. Nc5 {[%emt 0:03:30]} e6 {[%emt 0:01:30]} 22. Bg2 {[%emt 0:00:30]} Nxe5 {[%emt 0:15:30]} 23. Nxb7 {[%emt 0:03:30]} Nxg4 {[%emt 0:00:30]} 24. Qf3 {[%emt 0:03:30]} Qb6+ {[%emt 0:00:30]} 25. Kh1 {[%emt 0:00:30]} Ne3 {[%emt 0:01:30]} 26. Qf2 {[%emt 0:11:30]} Qxb2 {[%emt 0:05:30]} 27. Qxe3 {[%emt 0:02:30]} Rxc3 {[%emt 0:00:00]} 28. Qc1 {[%emt 0:00:30]} Qb5 {[%emt 0:01:00]} 29. Ra3 {[%emt 0:02:30]} Rc7 {[%emt 0:04:30]} 30. Rb3 {[%emt 0:02:30]} Qf5 {[%emt 0:03:30]} 31. c4 {[%emt 0:03:30]} Bh6 {[%emt 0:03:30]} 32. Rh3 {[%emt 0:05:30]} Bg7 {[%emt 0:02:30]} 33. Ra3 {[%emt 0:08:30]} Bh6 {[%emt 0:03:38]} 34. Rxa6 {[%emt 0:01:30]} e5 {[%emt 0:01:22]} 35. Nd6 {[%emt 0:10:30]} Qg4 {[%emt 0:01:41]} 36. Ne4 {[%emt 0:02:30]} Qh4 {[%emt 0:02:10]} 37. Nf6+ {[%emt 0:01:30]} Kg7 {[%emt 0:01:04]} 38. Qc3 {[%emt 0:01:30]} Bxf4 {[%emt 0:01:13]} 39. h3 {[%emt 0:01:30]} Rfc8 {[%emt 0:01:32]} 40. Bd5 {[%emt 0:05:30]} Rb8 {[%emt 0:03:07]} 41. Ne4 {[%emt 0:02:30]} Rd8 {[%emt 0:07:04]} 42. Nd6 {[%emt 0:02:11]} Bg3 {[%emt 0:01:00]} 43. Bg2 {[%emt 0:03:32]} Rcd7 {[%emt 0:00:19]} 44. c5 {[%emt 0:02:26]} Rc7 {[%emt 0:00:47]} 45. Qa5 {[%emt 0:01:21]} Rcd7 {[%emt 0:00:46]} 46. Ra7 {[%emt 0:01:54]} Bf4 {[%emt 0:00:10]} 47. Rxd7 {[%emt 0:02:22]} Rxd7 {[%emt 0:00:10]} 48. Qc3 {[%emt 0:01:17]} Ra7 {[%emt 0:00:46]} 49. c6 {[%emt 0:00:59]} Qd8 {[%emt 0:00:42]} 50. Nb5 {[%emt 0:00:35]} Ra8 {[%emt 0:00:24]} 51. Rxf4 {[%emt 0:00:13]} Qd1+ {[%emt 0:00:58]} 52. Rf1 {[%emt 0:00:10]} Qe2 {[%emt 0:00:11]} 53. Nd6 {[%emt 0:01:15]} Ra2 {[%emt 0:00:30]} 54. Qf3 {[%emt 0:00:00]} Qd2 {[%emt 0:00:34]} 55. Qxf7+ {[%emt 0:00:13]} Kh6 {[%emt 0:00:00]} 56. Qf8+ {[%emt 0:00:25]} Kh5 {[%emt 0:00:00]} 57. Qf3+ {[%emt 0:01:32]} Kh6 {[%emt 0:00:27]} 58. Nf7+ {[%emt 0:00:30]} Kg7 {[%emt 0:00:30]} 59. Qf6+ {[%emt 0:00:30]} Kf8 {[%emt 0:00:00]} 60. Nd6+ {[%emt 0:00:00]} Kg8 {[%emt 0:00:00]} 61. Qf7+ {[%emt 0:00:00]} Kh8 {[%emt 0:00:23]} 62. Qf8# {[%emt 0:00:00]} 1-0